fUST/lending_fUST_20250209
["ID","MTS","AMOUNT","RATE_DAILY","PERIOD"]
[352360764,1739058645151,-228.279158,0.00011917,2]
[352360765,1739058645160,-2500.0,0.00011917,2]
[352360766,1739058645170,-163.563244,0.00011917,2]
[352360767,1739058645179,-163.563244,0.00011917,2]
[352360768,1739058645189,-812.00223251,0.00011917,2]
[352360769,1739058645198,-151.0,0.00011917,2]
[352360770,1739058645208,-500.0,0.00011917,2]
[352360771,1739058645217,-500.0,0.00011917,2]
[352360772,1739058645226,-500.0,0.00011917,2]
[352360773,1739058645235,-608.77,0.00011917,2]
[352360774,1739058645245,-500.0,0.00011917,2]
[352360775,1739058645254,-151.0,0.00011917,2]
[352360776,1739058645264,-500.0,0.00011917,2]
[352360777,1739058645274,-624.35209419,0.00011917,2]
[352360778,1739058645283,-516.02,0.00011917,2]
[352360779,1739058645292,-204.047024,0.00011917,2]
[352360780,1739058645302,-500.0,0.00011917,2]
[352360781,1739058645313,-151.0,0.00011917,2]
[352360782,1739058645322,-204.047024,0.00011917,2]
[352360783,1739058645331,-151.0,0.00011917,2]
[352360784,1739058645341,-277.218761,0.00011917,2]
[352360785,1739058645350,-277.218761,0.00011917,2]
[352360786,1739058645359,-151.0,0.00011917,2]
[352360787,1739058645370,-167.224196,0.00011917,2]
[352360788,1739058645379,-516.7,0.00011917,2]
[352360789,1739058645388,-167.224196,0.00011917,2]
[352360790,1739058645398,-500.0,0.00011917,2]
[352360791,1739058645408,-249.531378,0.00011917,2]
[352360792,1739058645418,-288.26857781,0.00011917,2]
[352360793,1739058645427,-249.531378,0.00011917,2]
[352360794,1739058645436,-151.0,0.00011917,2]
[352360795,1739058645446,-500.0,0.00011917,2]
[352360796,1739058645455,-177.319395,0.00011917,2]
[352360797,1739058645464,-500.0,0.00011917,2]
[352360798,1739058645473,-628.05,0.00011917,2]
[352360799,1739058645483,-1000.0,0.00011917,2]
[352360800,1739058645493,-354.711004,0.00011917,2]
[352360801,1739058645502,-354.711004,0.00011917,2]
[352360802,1739058645511,-470.765725,0.00011917,2]
[352360803,1739058645521,-470.765725,0.00011917,2]
[352360804,1739058645530,-582.88,0.00011917,2]
[352360805,1739058645539,-500.0,0.00011917,2]
[352360806,1739058645549,-633.07,0.00011917,2]
[352360807,1739058645559,-500.0,0.00011917,2]
[352360808,1739058645571,-500.0,0.00011917,2]
[352360809,1739058645581,-1816.08,0.00011917,2]
[352360810,1739058645590,-500.0,0.00011917,2]
[352360811,1739058645600,-2293.1,0.00011917,2]
[352360812,1739058645611,-829.17,0.00011917,2]
[352360813,1739058645620,-537.91,0.00011917,2]
[352360815,1739058645631,-749.93,0.00011917,2]
[352360817,1739058645643,-1251.41,0.00011917,2]
[352360818,1739058645653,-798.14,0.00011917,2]
[352360819,1739058645664,-500.0,0.00011917,2]
[352360820,1739058645674,-625.63,0.00011917,2]
[352360821,1739058645685,-500.0,0.00011917,2]
[352360822,1739058645694,-1196.26,0.00011917,2]
[352360823,1739058645703,-1515.62,0.00011917,2]
[352360824,1739058645714,-500.0,0.00011917,2]
[352360825,1739058645725,-721.93,0.00011917,2]
[352360826,1739058645734,-500.0,0.00011917,2]
[352360827,1739058645745,-1405.8,0.00011917,2]
[352360828,1739058645755,-592.8,0.00011917,2]
[352360830,1739058645764,-847.418249,0.00011917,2]
[352360832,1739058645774,-847.418249,0.00011917,2]
[352360834,1739058645783,-176.362131,0.00011917,2]
[352360835,1739058645793,-1142.38,0.00011917,2]
[352360836,1739058645803,-500.0,0.00011917,2]
[352360837,1739058645812,-500.0,0.00011917,2]
[352360838,1739058645822,-575.85,0.00011917,2]
[352360839,1739058645831,-521.4,0.00011917,2]
[352360840,1739058645840,-537.41,0.00011917,2]
[352360841,1739058645850,-583.25,0.00011917,2]
[352360842,1739058645860,-642.29,0.00011917,2]
[352360843,1739058645869,-1278.14,0.00011917,2]
[352360844,1739058645878,-500.0,0.00011917,2]
[352360845,1739058645888,-2051.87,0.00011917,2]
[352360846,1739058645897,-685.06,0.00011917,2]
[352360847,1739058645907,-15106.27,0.00011917,2]
[352360848,1739058645916,-7145.26,0.00011917,2]
[352360850,1739058645926,-522.6,0.00011917,2]
[352360851,1739058645936,-837.86,0.00011917,2]
[352360852,1739058645945,-2341.5198806,0.00011933,2]
[352360853,1739058645956,-484.43057635,0.00011957,2]
[352360854,1739058645965,-150.0,0.00011982,2]
[352360855,1739058645975,-537.0,0.00011982,2]
[352360856,1739058645984,-1975.0,0.00011982,2]
[352360857,1739058645993,-2296.0,0.00011982,2]
[352360858,1739058646004,-5000.0,0.00011991,2]
[352360859,1739058646015,-157.0,0.00011996,2]
[352360860,1739058646025,-157.01,0.00011996,2]
[352360861,1739058646034,-3410.0,0.00012028,2]
[352360862,1739058646044,-420.0,0.00012041,2]
[352360863,1739058646053,-500.0,0.00012047,2]
[352360864,1739058646063,-289.71604682,0.00012053,2]
[352360865,1739058646072,-500.0,0.00012054,2]
[352360866,1739058646083,-500.0,0.00012054,2]
[352360867,1739058646093,-151.0,0.00012054,2]
[352360868,1739058646103,-500.0,0.00012054,2]
[352360869,1739058646113,-608.77,0.00012054,2]
[352360870,1739058646123,-500.0,0.00012054,2]
[352360871,1739058646133,-500.0,0.00012054,2]
[352360872,1739058646143,-196.553751,0.00012054,2]
[352360873,1739058646152,-196.553751,0.00012054,2]
[352360874,1739058646162,-516.02,0.00012054,2]
[352360875,1739058646172,-500.0,0.00012054,2]
[352360876,1739058646182,-516.7,0.00012054,2]
[352360877,1739058646193,-500.0,0.00012054,2]
[352360878,1739058646202,-500.0,0.00012054,2]
[352360879,1739058646212,-500.0,0.00012054,2]
[352360880,1739058646222,-628.05,0.00012054,2]
[352360881,1739058646231,-582.88,0.00012054,2]
[352360882,1739058646241,-500.0,0.00012054,2]
[352360883,1739058646251,-633.07,0.00012054,2]
[352360884,1739058646261,-500.0,0.00012054,2]
[352360885,1739058646271,-500.0,0.00012054,2]
[352360886,1739058646280,-1816.08,0.00012054,2]
[352360887,1739058646290,-500.0,0.00012054,2]
[352360888,1739058646300,-2293.1,0.00012054,2]
[352360889,1739058646309,-829.17,0.00012054,2]
[352360890,1739058646319,-537.91,0.00012054,2]
[352360891,1739058646329,-749.93,0.00012054,2]
[352360892,1739058646338,-431.40023,0.00012054,2]
[352360893,1739058646348,-431.40023,0.00012054,2]
[352360894,1739058646357,-1251.41,0.00012054,2]
[352360895,1739058646367,-798.14,0.00012054,2]
[352360896,1739058646376,-500.0,0.00012054,2]
[352360897,1739058646386,-625.63,0.00012054,2]
[352360898,1739058646395,-500.0,0.00012054,2]
[352360899,1739058646404,-1196.26,0.00012054,2]
[352360900,1739058646413,-1515.62,0.00012054,2]
[352360901,1739058646422,-468.41864352,0.00012054,2]
[352360902,1739058646432,-721.93,0.00012054,2]
[352360903,1739058646442,-500.0,0.00012054,2]
[352360904,1739058646452,-1405.8,0.00012054,2]
[352360905,1739058646462,-592.8,0.00012054,2]
[352360906,1739058646472,-847.418249,0.00012054,2]
[352360907,1739058646481,-847.418249,0.00012054,2]
[352360908,1739058646491,-1142.38,0.00012054,2]
[352360909,1739058646501,-500.0,0.00012054,2]
[352360910,1739058646511,-500.0,0.00012054,2]
[352360911,1739058646519,-575.85,0.00012054,2]
[352360912,1739058646529,-521.4,0.00012054,2]
[352360913,1739058646539,-583.25,0.00012054,2]
[352360914,1739058646548,-642.29,0.00012054,2]
[352360915,1739058646558,-1278.14,0.00012054,2]
[352360916,1739058646710,-500.0,0.00012054,2]
[352360917,1739058646721,-2051.87,0.00012054,2]
[352360918,1739058646730,-685.06,0.00012054,2]
[352360919,1739058646741,-15106.27,0.00012054,2]
[352360920,1739058646751,-7145.26,0.00012054,2]
[352360921,1739058646760,-522.6,0.00012054,2]
[352360922,1739058646770,-837.86,0.00012054,2]
[352360923,1739058646779,-479.8200615,0.00012055,2]
[352360924,1739058646789,-600.0,0.00012098,2]
[352360925,1739058646799,-151.0,0.000121,2]
[352360926,1739058646809,-2400.0,0.00012158,2]
[352360927,1739058646820,-1000.0,0.00012173,2]
[352360928,1739058646829,-151.0,0.00012182,2]
[352360929,1739058646838,-284.345504,0.00012182,2]
[352360930,1739058646848,-284.345504,0.00012182,2]
[352360931,1739058646858,-174.103427,0.00012182,2]
[352360932,1739058646868,-151.0,0.00012182,2]
[352360933,1739058646878,-151.0,0.00012182,2]
[352360934,1739058646887,-151.0,0.00012182,2]
[352360935,1739058646897,-249.531378,0.00012182,2]
[352360936,1739058646907,-249.531378,0.00012182,2]
[352360937,1739058646917,-237.22452895,0.00012182,2]
[352360938,1739058646927,-354.711004,0.00012182,2]
[352360939,1739058646936,-354.711004,0.00012182,2]
[352360940,1739058646946,-150.17,0.00012182,2]
[352360941,1739058646955,-150.17,0.00012182,2]
[352360942,1739058646965,-150.17,0.00012182,2]
[352360943,1739058646975,-671.0,0.00012182,2]
[352360944,1739058646984,-500.0,0.00012182,2]
[352360945,1739058646997,-150.17,0.00012182,2]
[352360946,1739058647008,-500.0,0.00012182,2]
[352360947,1739058647018,-150.17,0.00012182,2]
[352360948,1739058647028,-150.17,0.00012182,2]
[352360949,1739058647038,-150.17,0.00012182,2]
[352360950,1739058647048,-500.0,0.00012182,2]
[352360951,1739058647057,-500.0,0.00012182,2]
[352360952,1739058647066,-164.3033726,0.00012182,2]
[352360953,1739058647076,-204.77617432,0.00012182,2]
[352360954,1739058647086,-160.46814191,0.00012182,2]
[352360955,1739058647096,-150.17,0.00012182,2]
[352360956,1739058647106,-166.78794859,0.00012182,2]
[352360957,1739058647116,-150.17,0.00012182,2]
[352360958,1739058647126,-500.0,0.00012182,2]
[352360959,1739058647136,-150.17,0.00012182,2]
[352360960,1739058647145,-150.17,0.00012182,2]
[352360961,1739058647155,-500.0,0.00012184,2]
[352360962,1739058647164,-151.0,0.00012185,2]
[352360963,1739058647174,-151.0,0.00012185,2]
[352360964,1739058647184,-151.0,0.00012185,2]
[352360965,1739058647195,-562.505833,0.00012185,2]
[352360966,1739058647204,-562.505833,0.00012185,2]
[352360967,1739058647215,-180.55441,0.00012185,2]
[352360968,1739058647225,-180.55441,0.00012185,2]
[352360969,1739058647235,-151.0,0.0001219,2]
[352360970,1739058647246,-151.0,0.0001219,2]
[352360971,1739058647255,-276.744905,0.00012191,2]
[352360972,1739058647264,-151.0,0.00012191,2]
[352360973,1739058647275,-151.0,0.00012191,2]
[352360974,1739058647284,-151.0,0.00012191,2]
[352360975,1739058647294,-151.843507,0.00012191,2]
[352360976,1739058647305,-151.0,0.00012191,2]
[352360977,1739058647314,-151.0,0.00012191,2]
[352360978,1739058647324,-163.563244,0.00012191,2]
[352360979,1739058647334,-163.563244,0.00012191,2]
[352360980,1739058647344,-151.0,0.00012191,2]
[352360981,1739058647353,-500.0,0.00012191,2]
[352360982,1739058647364,-500.0,0.00012191,2]
[352360983,1739058647374,-151.0,0.00012191,2]
[352360984,1739058647384,-158.01340255,0.00012191,2]
[352360985,1739058647394,-608.77,0.00012191,2]
[352360986,1739058647405,-500.0,0.00012191,2]
[352360987,1739058647414,-151.0,0.00012191,2]
[352360988,1739058647423,-500.0,0.00012191,2]
[352360989,1739058647433,-196.553751,0.00012191,2]
[352360990,1739058647442,-196.553751,0.00012191,2]
[352360991,1739058647451,-516.02,0.00012191,2]
[352360992,1739058647461,-204.047024,0.00012191,2]
[352360993,1739058647470,-500.0,0.00012191,2]
[352360994,1739058647480,-151.0,0.00012191,2]
[352360995,1739058647490,-204.047024,0.00012191,2]
[352360996,1739058647500,-277.218761,0.00012191,2]
[352360997,1739058647510,-277.218761,0.00012191,2]
[352360998,1739058647520,-151.0,0.00012191,2]
[352360999,1739058647530,-167.224196,0.00012191,2]
[352361000,1739058647541,-516.7,0.00012191,2]
[352361001,1739058647552,-167.224196,0.00012191,2]
[352361002,1739058647565,-500.0,0.00012191,2]
[352361003,1739058647575,-249.531378,0.00012191,2]
[352361004,1739058647584,-249.531378,0.00012191,2]
[352361005,1739058647594,-151.0,0.00012191,2]
[352361006,1739058647605,-500.0,0.00012191,2]
[352361007,1739058647615,-177.319395,0.00012191,2]
[352361008,1739058647625,-500.0,0.00012191,2]
[352361009,1739058647634,-628.05,0.00012191,2]
[352361010,1739058647643,-354.711004,0.00012191,2]
[352361011,1739058647654,-354.711004,0.00012191,2]
[352361012,1739058647663,-470.765725,0.00012191,2]
[352361013,1739058647672,-470.765725,0.00012191,2]
[352361014,1739058647682,-582.88,0.00012191,2]
[352361015,1739058647694,-500.0,0.00012191,2]
[352361016,1739058647704,-633.07,0.00012191,2]
[352361017,1739058647714,-500.0,0.00012191,2]
[352361018,1739058647724,-500.0,0.00012191,2]
[352361019,1739058647733,-1816.08,0.00012191,2]
[352361020,1739058647743,-500.0,0.00012191,2]
[352361021,1739058647752,-2293.1,0.00012191,2]
[352361022,1739058647761,-829.17,0.00012191,2]
[352361023,1739058647770,-537.91,0.00012191,2]
[352361024,1739058647780,-749.93,0.00012191,2]
[352361025,1739058647790,-431.40023,0.00012191,2]
[352361026,1739058647799,-431.40023,0.00012191,2]
[352361027,1739058647809,-1251.41,0.00012191,2]
[352361028,1739058647818,-798.14,0.00012191,2]
[352361029,1739058647828,-324.72678624,0.00012191,2]
[352361030,1739058647837,-625.63,0.00012191,2]
[352361031,1739058647846,-500.0,0.00012191,2]
[352361032,1739058647856,-1196.26,0.00012191,2]
[352361033,1739058647866,-1515.62,0.00012191,2]
[352361034,1739058647877,-721.93,0.00012191,2]
[352361035,1739058647887,-500.0,0.00012191,2]
[352361036,1739058647897,-1405.8,0.00012191,2]
[352361037,1739058647906,-592.8,0.00012191,2]
[352361038,1739058647917,-847.418249,0.00012191,2]
[352361039,1739058647927,-847.418249,0.00012191,2]
[352361040,1739058647938,-1142.38,0.00012191,2]
[352361041,1739058647949,-500.0,0.00012191,2]
[352361042,1739058647960,-500.0,0.00012191,2]
[352361043,1739058647970,-575.85,0.00012191,2]
[352361044,1739058647981,-521.4,0.00012191,2]
[352361045,1739058647992,-583.25,0.00012191,2]
[352361046,1739058648002,-642.29,0.00012191,2]
[352361047,1739058648013,-1278.14,0.00012191,2]
[352361048,1739058648024,-500.0,0.00012191,2]
[352361049,1739058648035,-2051.87,0.00012191,2]
[352361050,1739058648045,-685.06,0.00012191,2]
[352361051,1739058648055,-15106.27,0.00012191,2]
[352361052,1739058648065,-7145.26,0.00012191,2]
[352361053,1739058648075,-522.6,0.00012191,2]
[352361054,1739058648086,-837.86,0.00012191,2]
[352361055,1739058648096,-151.0,0.000122,2]
[352361056,1739058648107,-773.2232876,0.00012224,2]
[352361057,1739058648119,-465.01966124,0.00012231,2]
[352361058,1739058648129,-153.0,0.00012247,2]
[352361059,1739058648139,-153.0,0.00012247,2]
[352361060,1739058648149,-215.7975175,0.00012247,2]
[352361061,1739058648159,-153.0,0.00012247,2]
[352361062,1739058648169,-153.0,0.00012247,2]
[352361063,1739058648179,-153.0,0.00012247,2]
[352361064,1739058648189,-306.0,0.00012247,2]
[352361065,1739058648199,-154.5736464,0.00012247,2]
[352361066,1739058648210,-153.0,0.00012247,2]
[352361067,1739058648221,-153.4425861,0.00012247,2]
[352361068,1739058648233,-153.0,0.00012247,2]
[352361069,1739058648243,-153.0,0.00012247,2]
[352361070,1739058648253,-153.0,0.00012247,2]
[352361071,1739058648263,-153.0,0.00012247,2]
[352361072,1739058648274,-153.0,0.00012247,2]
[352361073,1739058648284,-153.0,0.00012247,2]
[352361074,1739058648294,-2000.0,0.000123,2]
[352361075,1739058648305,-2000.0,0.000123,2]
[352361076,1739058648315,-500.0,0.00012321,2]
[352361077,1739058648325,-329.524607,0.00012327,2]
[352361078,1739058648336,-329.524607,0.00012327,2]
[352361079,1739058648346,-153.501486,0.00012327,2]
[352361080,1739058648357,-153.501486,0.00012327,2]
[352361081,1739058648367,-151.0,0.00012327,2]
[352361082,1739058648377,-151.0,0.00012328,2]
[352361083,1739058648387,-151.0,0.00012328,2]
[352361084,1739058648398,-151.0,0.00012328,2]
[352361085,1739058648407,-562.505833,0.00012328,2]
[352361086,1739058648417,-562.505833,0.00012328,2]
[352361087,1739058648427,-180.55441,0.00012328,2]
[352361088,1739058648437,-180.55441,0.00012328,2]
[352361089,1739058648447,-163.563244,0.00012328,2]
[352361090,1739058648458,-163.563244,0.00012328,2]
[352361091,1739058648468,-151.0,0.00012328,2]
[352361092,1739058648478,-151.0,0.00012328,2]
[352361093,1739058648489,-284.345504,0.00012328,2]
[352361094,1739058648499,-284.345504,0.00012328,2]
[352361095,1739058648509,-500.0,0.00012328,2]
[352361096,1739058648520,-500.0,0.00012328,2]
[352361097,1739058648531,-608.77,0.00012328,2]
[352361098,1739058648542,-500.0,0.00012328,2]
[352361099,1739058648551,-151.0,0.00012328,2]
[352361100,1739058648563,-500.0,0.00012328,2]
[352361101,1739058648573,-516.02,0.00012328,2]
[352361102,1739058648583,-500.0,0.00012328,2]
[352361103,1739058648594,-151.0,0.00012328,2]
[352361104,1739058648606,-277.218761,0.00012328,2]
[352361105,1739058648616,-277.218761,0.00012328,2]
[352361106,1739058648626,-151.0,0.00012328,2]
[352361107,1739058648637,-516.7,0.00012328,2]
[352361108,1739058648648,-500.0,0.00012328,2]
[352361109,1739058648658,-249.531378,0.00012328,2]
[352361110,1739058648667,-249.531378,0.00012328,2]
[352361111,1739058648677,-151.0,0.00012328,2]
[352361112,1739058648687,-500.0,0.00012328,2]
[352361113,1739058648697,-500.0,0.00012328,2]
[352361114,1739058648707,-628.05,0.00012328,2]
[352361115,1739058648719,-354.711004,0.00012328,2]
[352361116,1739058648729,-354.711004,0.00012328,2]
[352361117,1739058648740,-582.88,0.00012328,2]
[352361118,1739058648752,-500.0,0.00012328,2]
[352361119,1739058648763,-633.07,0.00012328,2]
[352361120,1739058648774,-340.24896169,0.00012328,2]
[352361121,1739058648784,-500.0,0.00012328,2]
[352361122,1739058648795,-1816.08,0.00012328,2]
[352361123,1739058648804,-500.0,0.00012328,2]
[352361124,1739058648815,-2293.1,0.00012328,2]
[352361125,1739058648825,-829.17,0.00012328,2]
[352361126,1739058648835,-537.91,0.00012328,2]
[352361127,1739058648845,-749.93,0.00012328,2]
[352361128,1739058648855,-431.40023,0.00012328,2]
[352361129,1739058648865,-431.40023,0.00012328,2]
[352361130,1739058648875,-1251.41,0.00012328,2]
[352361131,1739058648886,-798.14,0.00012328,2]
[352361132,1739058648895,-625.63,0.00012328,2]
[352361133,1739058648905,-500.0,0.00012328,2]
[352361134,1739058648915,-1196.26,0.00012328,2]
[352361135,1739058648926,-1515.62,0.00012328,2]
[352361136,1739058648937,-721.93,0.00012328,2]
[352361137,1739058648947,-500.0,0.00012328,2]
[352361138,1739058648958,-1405.8,0.00012328,2]
[352361139,1739058648969,-592.8,0.00012328,2]
[352361140,1739058648979,-847.418249,0.00012328,2]
[352361141,1739058648990,-151.0,0.00012328,2]
[352361142,1739058649000,-847.418249,0.00012328,2]
[352361143,1739058649009,-1142.38,0.00012328,2]
[352361144,1739058649019,-500.0,0.00012328,2]
[352361145,1739058649029,-500.0,0.00012328,2]
[352361146,1739058649040,-575.85,0.00012328,2]
[352361147,1739058649050,-521.4,0.00012328,2]
[352361148,1739058649062,-583.25,0.00012328,2]
[352361149,1739058649073,-1278.14,0.00012328,2]
[352361150,1739058649084,-642.29,0.00012328,2]
[352361151,1739058649095,-500.0,0.00012328,2]
[352361152,1739058649104,-2051.87,0.00012328,2]
[352361153,1739058649115,-151.0,0.00012328,2]
[352361154,1739058649124,-685.06,0.00012328,2]
[352361155,1739058649134,-15106.27,0.00012328,2]
[352361156,1739058649145,-7145.26,0.00012328,2]
[352361157,1739058649155,-522.6,0.00012328,2]
[352361158,1739058649164,-837.86,0.00012328,2]
[352361159,1739058649174,-22605.34381531,0.0001234,2]
[352361160,1739058649184,-1000.0,0.00012343,2]
[352361161,1739058649193,-2600.0,0.00012357,2]
[352361162,1739058649203,-167.224196,0.00012357,2]
[352361163,1739058649212,-167.224196,0.00012357,2]
[352361164,1739058649222,-177.319395,0.00012357,2]
[352361165,1739058649231,-177.319395,0.00012357,2]
[352361166,1739058649241,-470.765725,0.00012357,2]
[352361167,1739058649251,-470.765725,0.00012357,2]
[352361168,1739058649261,-3410.0,0.00012358,2]
[352361169,1739058649270,-151.0,0.00012358,2]
[352361170,1739058649280,-204.047024,0.00012393,2]
[352361171,1739058649289,-204.047024,0.00012393,2]
[352361172,1739058649300,-150.17,0.00012456,2]
[352361173,1739058649310,-150.17,0.00012456,2]
[352361174,1739058649319,-671.0,0.00012456,2]
[352361175,1739058649328,-650.11,0.00012456,2]
[352361176,1739058649338,-500.0,0.00012456,2]
[352361177,1739058649348,-150.17,0.00012456,2]
[352361178,1739058649357,-150.17,0.00012456,2]
[352361179,1739058649367,-500.0,0.00012456,2]
[352361180,1739058649376,-500.0,0.00012456,2]
[352361181,1739058649386,-150.17,0.00012456,2]
[352361182,1739058649396,-150.17,0.00012456,2]
[352361183,1739058649405,-718.17659612,0.00012456,2]
[352361184,1739058649415,-150.17,0.00012456,2]
[352361185,1739058649424,-215.50567928,0.00012456,2]
[352361186,1739058649433,-151.0,0.00012456,2]
[352361187,1739058649444,-500.0,0.00012458,2]
[352361188,1739058649453,-500.0,0.00012464,2]
[352361189,1739058649463,-586.26103756,0.00012464,2]
[352361190,1739058649473,-151.0,0.00012465,2]
[352361191,1739058649482,-151.0,0.00012465,2]
[352361192,1739058649492,-151.0,0.00012465,2]
[352361193,1739058649501,-151.0,0.00012465,2]
[352361194,1739058649510,-500.0,0.00012465,2]
[352361195,1739058649520,-500.0,0.00012465,2]
[352361196,1739058649529,-608.77,0.00012465,2]
[352361197,1739058649539,-500.0,0.00012465,2]
[352361198,1739058649548,-500.0,0.00012465,2]
[352361199,1739058649558,-196.553751,0.00012465,2]
[352361200,1739058649570,-196.553751,0.00012465,2]
[352361201,1739058649580,-516.02,0.00012465,2]
[352361202,1739058649590,-204.047024,0.00012465,2]
[352361203,1739058649599,-500.0,0.00012465,2]
[352361204,1739058649609,-204.047024,0.00012465,2]
[352361205,1739058649618,-516.7,0.00012465,2]
[352361206,1739058649628,-214.71389651,0.00012465,2]
[352361207,1739058649638,-500.0,0.00012465,2]
[352361208,1739058649648,-500.0,0.00012465,2]
[352361209,1739058649657,-628.05,0.00012465,2]
[352361210,1739058649667,-582.88,0.00012465,2]
[352361211,1739058649677,-500.0,0.00012465,2]
[352361212,1739058649687,-633.07,0.00012465,2]
[352361213,1739058649696,-500.0,0.00012465,2]
[352361214,1739058649705,-1816.08,0.00012465,2]
[352361215,1739058649715,-181.90682685,0.00012465,2]
[352361216,1739058649724,-2293.1,0.00012465,2]
[352361217,1739058649734,-829.17,0.00012465,2]
[352361218,1739058649744,-537.91,0.00012465,2]
[352361219,1739058649875,-749.93,0.00012465,2]
[352361220,1739058649885,-1251.41,0.00012465,2]
[352361221,1739058649895,-798.14,0.00012465,2]
[352361222,1739058649904,-625.63,0.00012465,2]
[352361223,1739058649915,-500.0,0.00012465,2]
[352361224,1739058649925,-1196.26,0.00012465,2]
[352361225,1739058649934,-1515.62,0.00012465,2]
[352361226,1739058649944,-721.93,0.00012465,2]
[352361227,1739058649953,-307.02779694,0.00012465,2]
[352361228,1739058649963,-1405.8,0.00012465,2]
[352361229,1739058649973,-592.8,0.00012465,2]
[352361230,1739058649983,-1142.38,0.00012465,2]
[352361231,1739058649993,-500.0,0.00012465,2]
[352361232,1739058650002,-306.12659778,0.00012465,2]
[352361233,1739058650012,-575.85,0.00012465,2]
[352361234,1739058650021,-521.4,0.00012465,2]
[352361235,1739058650032,-583.25,0.00012465,2]
[352361236,1739058650042,-1278.14,0.00012465,2]
[352361237,1739058650052,-642.29,0.00012465,2]
[352361238,1739058650061,-500.0,0.00012465,2]
[352361239,1739058650071,-2051.87,0.00012465,2]
[352361240,1739058650081,-685.06,0.00012465,2]
[352361241,1739058650091,-15106.27,0.00012465,2]
[352361242,1739058650100,-7145.26,0.00012465,2]
[352361243,1739058650109,-522.6,0.00012465,2]
[352361244,1739058650120,-837.86,0.00012465,2]
[352361245,1739058650132,-1000.0,0.000125,2]
[352361246,1739058650143,-56578.17626529,0.000125,2]
[352361247,1739058650153,-329.524607,0.000125,2]
[352361248,1739058650163,-329.524607,0.000125,2]
[352361249,1739058650174,-153.501486,0.000125,2]
[352361250,1739058650184,-153.501486,0.000125,2]
[352361251,1739058650193,-151.0,0.000125,2]
[352361252,1739058650203,-151.0,0.000125,2]
[352361253,1739058650212,-151.0,0.000125,2]
[352361254,1739058650223,-224.662925,0.000125,2]
[352361255,1739058650232,-562.505833,0.000125,2]
[352361256,1739058650243,-562.505833,0.000125,2]
[352361257,1739058650253,-180.55441,0.000125,2]
[352361258,1739058650263,-180.55441,0.000125,2]
[352361259,1739058650273,-151.0,0.000125,2]
[352361260,1739058650282,-236.058685,0.000125,2]
[352361261,1739058650291,-284.345504,0.000125,2]
[352361262,1739058650301,-284.345504,0.000125,2]
[352361263,1739058650310,-151.0,0.000125,2]
[352361264,1739058650321,-151.0,0.000125,2]
[352361265,1739058650330,-277.218761,0.000125,2]
[352361266,1739058650340,-277.218761,0.000125,2]
[352361267,1739058650350,-151.0,0.000125,2]
[352361268,1739058650360,-249.531378,0.000125,2]
[352361269,1739058650369,-249.531378,0.000125,2]